Cogmind - Beta 13 @@@ ROGUE MODE // 2024.04.03 @ 16:21:16 Player: sewer jenny Result: Destroyed by ZQ-MYK(R) with Subdweller Laser Performance ------------- Evolutions (0) 0 Regions Visited (3) 600 Robots Destroyed (8) 40 Value Destroyed (145) 145 Prototype IDs (0) 0 Alien Tech Used (0) 0 Bonus (0) 0 TOTAL SCORE: 785 Bonus ------- None Cogmind --------- Core Integrity 0/250 Matter 295/300 Energy 95/100 System Corruption 0% Temperature Cool (6) Movement Walking (120) Location -10/Subcaves Parts ------- > --- POWER (1) -------- (None) > --- PROPULSION (2) --- Aluminum Leg Myomer Leg > --- UTILITY (2) ------ (None) > --- WEAPON (2) ------- Light Assault Rifle > --- INVENTORY (5) ---- Ion Engine Medium Storage Unit Light Armor Plating Light Armor Plating Peak State ------------ > --- POWER ------------ (None) > --- PROPULSION ------- Aluminum Leg Myomer Leg > --- UTILITY ---------- Scrap Shield > --- WEAPON ----------- Light Assault Rifle > --- INVENTORY -------- Ion Engine Medium Storage Unit Light Armor Plating Light Armor Plating [Rating: 13] Favorites ----------- Power Ion Engine Engine Ion Engine Propulsion Aluminum Leg Leg Aluminum Leg Wheel Wheel Utility Medium Storage Unit Storage Medium Storage Unit Protection Light Armor Plating Weapon Light Assault Rifle Energy Gun Medium Laser Ballistic Gun Light Assault Rifle Launcher Rocket Launcher Build | -11 -10 -10 -10 ------- Run | Yrd Mat Min Sub Slots Evolved . | . . . . Power . | . . . . Propulsion . | . . . . Utility . | . . . . Weapon . | . . . . Parts Attached 20 | 6 10 1 3 Power 3 | 1 2 . . Engine 3 | 1 2 . . Core . | . . . . Reactor . | . . . . Propulsion 6 | 2 3 . 1 Treads . | . . . . Leg 5 | 2 2 . 1 Wheel 1 | . 1 . . Hover . | . . . . Flight . | . . . . Utility 7 | 1 4 . 2 Device . | . . . . Storage 4 | 1 3 . . Processor . | . . . . Hackware . | . . . . Protection 3 | . 1 . 2 Artifact . | . . . . Weapon 4 | 2 1 1 . Energy Gun 2 | 1 1 . . Energy Cannon . | . . . . Ballistic Gun 1 | 1 . . . Ballistic Cannon . | . . . . Launcher 1 | . . 1 . Special Weapon . | . . . . Impact Weapon . | . . . . Slashing Weapon . | . . . . Piercing Weapon . | . . . . Special Melee Weapon . | . . . . Unidentified Prototypes . | . . . . Parts Lost 6 | . 1 3 2 Power 1 | . . . 1 Propulsion 1 | . . 1 . Utility 2 | . . 1 1 Weapon 2 | . 1 1 . Highest Loss Streak 2 | . 1 2 2 To Critical Strikes . | . . . . Average Slot Usage (%) 82 | . 88 89 56 Engine 13 | . 13 14 13 Leg 21 | . 18 24 14 Wheel 1 | . 4 . . Storage 11 | . 14 14 1 Protection 11 | . 13 10 12 Energy Gun 2 | . 9 . . Ballistic Gun 14 | . 14 14 14 Launcher 5 | . . 10 . Naked Turns . | . . . . Heaviest Build 89 | 13 89 23 24 Greatest Support 35 | 20 20 20 35 Greatest Overweight (x) 8 | 1 8 1 2 Average Overweight (x) . | . . . 1 Largest Inventory Capacity 25 | 8 25 10 10 Average Capacity 9 | 7 10 10 5 Most Carried 10 | 4 7 9 10 Average Carried 5 | 1 5 7 4 Final Capacity 10 | 8 10 10 5 Final Carried 9 | 2 5 9 4 Class Distribution -------------------- 100% | Mutant Dominant Class ---------------- Mutant | -10/Materials Mutant | -10/Mines Mutant | -10/Subcaves Resources | -11 -10 -10 -10 ----------- Run | Yrd Mat Min Sub Matter Collected 485 | 173 35 119 158 Remotely . | . . . . Salvage Created 245 | 74 76 95 . Parts 20 | 5 7 8 . Haulers Intercepted . | . . . . Recyclers Shooed 1 | . 1 . . Parts Field Recycled . | . . . . Retrieved Matter . | . . . . Parts Self-Destructed 3 | . . . 3 Prevented . | . . . . Kills | -11 -10 -10 -10 ------- Run | Yrd Mat Min Sub Combat Hostiles Destroyed 6 | . 2 4 . Guns 6 | . 2 4 . Classes Destroyed 4 | 2 1 1 . Tunneler 1 | 1 . . . Recycler 1 | 1 . . . Swarmer 3 | . . 3 . Grunt 3 | . 2 1 . Best Kill Streak 2 | 2 1 2 . Combat Bots Only 2 | . 1 2 . Max Kills in Single Turn 1 | 1 1 1 . Gunslinging . | . . . . Exploded . | . . . . Melee . | . . . . Uniques/NPCs Destroyed . | . . . . Combat | -11 -10 -10 -10 -------- Run | Yrd Mat Min Sub Hostile Shots Fired 107 | . 47 41 19 Missed 30 | . 15 12 3 Damage Taken 1072 | . 353 334 385 Core 254 | . 69 77 108 Absorbed by Shields . | . . . . Core Remaining (%) 100 | 100 . . . Volleys Fired 95 | 15 35 45 . Largest 2 | 1 2 1 . Hottest 70 | 20 70 33 . Shots Fired 99 | 15 39 45 . Gun 97 | 15 39 43 . Cannon . | . . . . Launcher 2 | . . 2 . Special . | . . . . Kinetic 93 | 15 35 43 . Thermal 4 | . 4 . . Explosive 2 | . . 2 . Electromagnetic . | . . . . Robot Hit Streak 8 | 6 7 8 . Robot Miss Streak 5 | 2 2 5 . Penetration Max . | . . . . Secondary Targets . | . . . . Shots Hit Robots 60 | 11 26 23 . Core Hits 18 | 5 4 9 . Critical Kills 1 | . . 1 . Critical Parts Destroyed 1 | . . 1 . Critical Strikes 2 | . . 2 . Destroy 2 | . . 2 . Melee Attacks . | . . . . Impact . | . . . . Slashing . | . . . . Piercing . | . . . . Sneak Attacks . | . . . . Combat Hostiles . | . . . . Follow-up Attacks . | . . . . Damage Inflicted 535 | 96 218 221 . Guns 510 | 96 218 196 . Cannons . | . . . . Explosions 25 | . . 25 . Melee . | . . . . Ramming . | . . . . Kinetic 484 | 96 192 196 . Thermal 26 | . 26 . . Explosive 25 | . . 25 . Electromagnetic . | . . . . Impact . | . . . . Slashing . | . . . . Piercing . | . . . . Highest Corruption . | . . . . Average Corruption . | . . . . Corruption Purged . | . . . . Corruption Blocked . | . . . . Overload Shots . | . . . . Overflow Damage 18 | . . 18 . Projectiles . | . . . . Explosions 18 | . . 18 . Melee . | . . . . Knockbacks . | . . . . Impact . | . . . . Kinetic . | . . . . Secondary . | . . . . Self-Inflicted Damage 47 | . . 47 . Shots 1 | . . 1 . Rammed . | . . . . Targets Rammed . | . . . . Kicked . | . . . . Crushed . | . . . . Highest Temperature 146 | . 146 9 . Average Temperature 35 | . 44 4 . Received Heat Transfer 357 | . 192 63 102 Siege Activations . | . . . . Robots Corrupted . | . . . . Combat Hostiles . | . . . . Parts Fried . | . . . . Impact Corruptions . | . . . . Robots Melted . | . . . . Combat Hostiles . | . . . . Parts Melted . | . . . . Heat Transferred 74 | . 74 . . Parts Sabotaged . | . . . . Parts Stolen . | . . . . Parts Stripped . | . . . . Power Chain Reactions . | . . . . Alert | -11 -10 -10 -10 ------- Run | Yrd Mat Min Sub Peak Influence 61 | 10 61 55 . Initial 6 | . 6 . . Average 23 | 2 18 28 . Maximum Alert Level . | . . . . Low Security (%) 100 | 100 100 100 . Level 1 . | . . . . Level 2 . | . . . . Level 3 . | . . . . Level 4 . | . . . . Level 5 . | . . . . High Security . | . . . . Max Security . | . . . . Squads Dispatched 3 | . 3 . . Investigation 3 | . 3 . . Extermination . | . . . . Reinforcement . | . . . . Assault . | . . . . Garrison . | . . . . Intercept . | . . . . Searches Triggered . | . . . . Construction Impeded . | . . . . Haulers Reinforced . | . . . . Active Scanning Responses . | . . . . Cargo Convoy Interrupts . | . . . . Stealth | -11 -10 -10 -10 --------- Run | Yrd Mat Min Sub Distress Signals 1 | . 1 . . Communications Jammed . | . . . . Distress Signals . | . . . . Times Spotted 20 | . 5 7 8 Peak Tracking Total 7 | . 4 3 7 Tactical Retreats 3 | . . 3 . Traps | -11 -10 -10 -10 ------- Run | Yrd Mat Min Sub Traps Triggered 3 | . 3 . . Indirectly . | . . . . Trap Hack Attempts . | . . . . Triggered . | . . . . Disarmed . | . . . . Reprogrammed . | . . . . Reused . | . . . . Traps Extracted . | . . . . Installed 4 | . . . 4 Triggered . | . . . . Most Traps Carried 4 | . . 4 4 Machines | -11 -10 -10 -10 ---------- Run | Yrd Mat Min Sub Machines Disabled . | . . . . Max in Single Turn . | . . . . Machines Repaired . | . . . . Machines Dismantled . | . . . . Machines Sabotaged . | . . . . Overloaded Fab Kills . | . . . . Hacking | -11 -10 -10 -10 --------- Run | Yrd Mat Min Sub Machines Accessed 2 | . 2 . . Terminals 2 | . 2 . . Fabricators . | . . . . Repair Stations . | . . . . Recycling Units . | . . . . Scanalyzers . | . . . . Garrison Access . | . . . . Total Hacks 6 | . 6 . . Successful 1 | . 1 . . Failed 5 | . 5 . . Catastrophic 2 | . 2 . . Database Lockouts . | . . . . Manual 6 | . 6 . . Terminals 6 | . 6 . . Fabricators . | . . . . Repair Stations . | . . . . Recycling Units . | . . . . Scanalyzers . | . . . . Garrison Access . | . . . . Terminal Hacks 1 | . 1 . . Maintenance Status 1 | . 1 . . Fabricator Hacks . | . . . . Repair Station Hacks . | . . . . Recycling Unit Hacks . | . . . . Scanalyzer . | . . . . Garrison Access Hacks . | . . . . Unauthorized Hacks . | . . . . Terminals . | . . . . Fabricators . | . . . . Repair Stations . | . . . . Recycling Units . | . . . . Scanalyzers . | . . . . Garrison Access . | . . . . Data Cores Recovered . | . . . . Used . | . . . . Hacking Detections 2 | . 2 . . Full Trace Events 2 | . 2 . . Feedback Events . | . . . . Feedback Blocked . | . . . . Robot Schematics Acquired . | . . . . Robots Built . | . . . . Authchips . | . . . . Time . | . . . . Total Robot Build Rating . | . . . . Part Schematics Acquired . | . . . . Parts Built . | . . . . Authchips . | . . . . Time . | . . . . Total Part Build Rating . | . . . . Parts Repaired . | . . . . Time . | . . . . Parts Recycled . | . . . . Recycled Matter . | . . . . Retrieved Matter . | . . . . Retrieved Components . | . . . . Parts Scanalyzed . | . . . . Part Schematics Acquired . | . . . . Parts Damaged . | . . . . Bothacking | -11 -10 -10 -10 ------------ Run | Yrd Mat Min Sub Used RIF Installer . | . . . . Robots Hacked . | . . . . Non-combat . | . . . . Combat . | . . . . Robot Hacks Applied . | . . . . Relay Couplers Released . | . . . . Fabnet Peak Effective % . | . . . . Robots Rewired . | . . . . Allies Hacked . | . . . . Hacks Repelled . | . . . . Allies | -11 -10 -10 -10 -------- Run | Yrd Mat Min Sub Total Allies . | . . . . Largest Group . | . . . . Highest-Rated Group . | . . . . Highest-Rated Ally . | . . . . Total Orders . | . . . . Ally Attacks . | . . . . Total Damage . | . . . . Kills . | . . . . Allies Corrupted . | . . . . Allies Melted . | . . . . Intel | -11 -10 -10 -10 ------- Run | Yrd Mat Min Sub Robot Analysis Total . | . . . . Derelict Logs Recovered 1 | . . 1 . Drone Launches . | . . . . Drone Recoveries . | . . . . Exploration | -11 -10 -10 -10 ------------- Run | Yrd Mat Min Sub Turns Passed 1835 | 106 449 938 342 Spaces Moved 832 | 58 230 411 133 Core 8 | 8 . . . Treads . | . . . . Legs 776 | 50 182 411 133 Wheels 48 | . 48 . . Hover . | . . . . Flight . | . . . . Fastest Speed 50 | 50 95 120 120 Average Speed 178 | 112 155 180 241 Slowest Speed 680 | 120 680 190 260 Overloaded Moves . | . . . . Propulsion Burnouts . | . . . . Robots Hopped . | . . . . Cave-ins Triggered . | . . . . Exploration Rate (%) 29 | 6 27 77 9 Regions Visited 3 Branch Regions 2 Pre-discovered Areas . | . . . . Known Exits Taken . | . . . . Unknown Exits Taken 3 | 1 1 1 . Scrap Searched 2 | . . 2 . Spaces Dug . | . . . . Terrain Destroyed 27 | . . 27 . Melee . | . . . . Projectile . | . . . . AOE 27 | . . 27 . Terrain Rammed . | . . . . Walls Destroyed . | . . . . Machines Disabled . | . . . . Actions | -11 -10 -10 -10 --------- Run | Yrd Mat Min Sub Total 1103 | 86 290 569 158 Wait 113 | . . 108 5 Move 829 | 57 229 410 133 Hop . | . . . . Pick Up 28 | 8 11 5 4 Fast Attach . | . . . . Attach 16 | 6 6 1 3 Detach 2 | . 1 . 1 Swap 4 | . 4 . . Drop 12 | . 4 . 8 Fire 95 | 15 35 45 . Melee . | . . . . Ram . | . . . . Kick . | . . . . Crush . | . . . . Escape Stasis . | . . . . Rewire . | . . . . Trap 4 | . . . 4 Miscellaneous . | . . . . Route ------- -11/Scrapyard -10/Materials -10/Mines (discovered 2 exits: [*Mat] / [*Sub]) -10/Subcaves (discovered 1 exit: [*Mat]) History --------- Turn | Location | Event 56 | -11/Scrapyard | Discovered new exit (range 13) 107 | -11/Scrapyard | Entered Materials 317 | -10/Materials | Build established: Mutant 544 | -10/Materials | Discovered new exit (range 11) 556 | -10/Materials | Entered Mines 610 | -10/Mines | Discovered new exit (range 8) 633 | -10/Mines | Learned Materials trap positions 644 | -10/Mines | Received a Rocket Launcher from a helpful Derelict 907 | -10/Mines | Found a hidden stash of uninstalled traps 1362 | -10/Mines | Core integrity fell below 50% 1477 | -10/Mines | Discovered new exit (range 10) 1494 | -10/Mines | Entered Subcaves 1715 | -10/Subcaves | Discovered new exit (range 15) 1812 | -10/Subcaves | Ambushed by swarm of Subdwellers 1830 | -10/Subcaves | Core integrity fell below 20% 1836 | -10/Subcaves | Destroyed by ZQ-MYK(R) with Subdweller Laser Last Messages --------------- TB-6XX(h): "The Subs are coming!" HV Slug penetrates Wall. 9H-2DS(R) emerges from the Twisted Machinery. 6L-ZBR(R) emerges from the Twisted Machinery. I7-D0D(g): "Sorry we're late! Had another grouchy Sub to deal with. Who's the new fellow?" Ion Engine destroyed. NE-R9V(R) emerges from the Twisted Machinery. TB-6XX(h) destroyed. 9O-RC9(R) emerges from the Twisted Machinery. Acquired Myomer Leg. 5E-NLS(R) emerges from the Twisted Machinery. PF-SQT(R) emerges from the Twisted Machinery. NE-R9V(R) suffers critical hit (Burn). Scrap Shield destroyed. Subatomizers dissect the Battle Rifle. FG-T3N(g) destroyed. 6L-ZBR(R) destroyed. ZQ-MYK(R): "SLEEPOVER!" Map ----- +----------------------------------------------------+ | ?????????????????????????????????????????????????? | | ?????????????????????????????????????????????????? | | ?????????????????????????????????????????????????? | | ?????????????????????????????????????????????????? | | ?????????????????????????????????????????????????? | | ?????????????????????????????????????????????????? | | ?????????????????????????????????????????????????? | | ?????????????????????????????????????????????????? | | ?????????????????????????????????????????????????? | | ?????????????????????????????????????????????????? | | ?????????????????????????????????????????????????? | | ?????????????????????????????????????????????????? | | ????????????##???????????????????????????????????? | | ???????????? ???????????????????????????????????? | | ???????????##"##?????????????????????????????????? | | ????????????""""?????????????????????????????????? | | ????????????# ##????????????????????????????????? | | ????????????#% ##???????????????????????????????? | | ???????????## #???????????????????????????????? | | ??????????## =%[ #???????????????????????????????? | | ??????????#" &]%###??????????????????????????????? | | ???????????# *!"""##??#####???###?????%?????????? | | ???????????#" ""#?## #### ## ?????????? | | ???????????#" "### #????????? | | ???????????#; %[ ;#% #????????? | | ???????????#; R @ % #????????? | | ???????????#; ;;; % % #????????? | | ???????????#; ; ## % #????????? | | ???????????#; ##?# < ### ????????? | | ???????????### ??# #??? ????# ?? | | ?????????????## ??# % ##?# ???## ?? | | ??????????????## ??# ## ??? ??? | | ????????????????#### ????? ??? | | ?????????????## ## #???????? ??? | | ?????????????# % ##?????????# ??? | | ?????????????# ##?####????## ??? | | ?????????????## #?## #????# #??? | | ??????????????## #?# #????? #??? | | ???????????????## #?# ###???# ##?? | | ????????????????## ###### #?# ##??# ##? | | ?????????????????###### ###### ### #### #? | | ??????????????????????### ! " ## ## | | ???????????????????????# =^^ # | | ???????????????????????# ^^ #" ### | | ??????????????????????## #### #?## ## | | ??????????????????????# #??# #??##### | | ??????????????? #??# ##??????## | | ????????????????#### ### ##??### #????????? | | ???????????????????####??## #???### #????????? | | ??????????????????????????### #???# #????????? | +----------------------------------------------------+ Best States ------------- Heat Dissipation 25 Energy Generation 10 Energy Capacity 250 Matter Stores 300 Matter Capacity 300 Sight Range 16 Terrain Scan Density 10 Armor Coverage 800 Evasion (%) 55 Item Schematics ----------------- None Robot Schematics ------------------ None Fabricated ------------ Nothing Alien Tech Used ----------------- None Achievements -------------- None Challenges ------------ None Game ------ Seed BeamMediumLauncher Manual? 0 Play Time 00:15:08 Cumulative 5.9 hours Start 2024.04.03 @ 16:06:34 End 2024.04.03 @ 16:21:16 Sessions 1 Manual Loads 0 Difficulty Rogue Special Mode None Game No. 9 Rogue 8 Adventurer 1 Explorer 0 Win Type - Total 0 Types 0/0/0/0/0/0/0/0/0 Lore% 3 Gallery% 15 Achievement% 12 Wizard Run 0 Options --------- Layout 1 ASCII 0 Keyboard 0 Movement Mouse Keybinds 0 Fullscreen 2 Font 24/Smallcaps Map View 50x35 Zoom Use 0% Tactical HUD 0 Map Filters NONE Filters NONE Steam 1 RUN: 3a78c53e-548e-41ea-be8f-ad784b3d91d2